fUSD/lending_fUSD_20260129
["ID","MTS","AMOUNT","RATE_DAILY","PERIOD"]
[403962517,1769695838003,-500.0,0.0001516,2]
[403962518,1769695838012,-500.0,0.0001516,2]
[403962519,1769695838022,-500.0,0.0001516,2]
[403962520,1769695838031,-500.0,0.0001516,2]
[403962521,1769695838043,-508.85443347,0.0001516,2]
[403962522,1769695838052,-500.0,0.0001516,2]
[403962523,1769695838062,-514.28,0.0001516,2]
[403962524,1769695838071,-514.28,0.0001516,2]
[403962525,1769695838082,-514.28,0.0001516,2]
[403962526,1769695838091,-514.28,0.0001516,2]
[403962528,1769695838100,-514.28,0.0001516,2]
[403962530,1769695838110,-514.28,0.0001516,2]
[403962532,1769695838119,-514.28,0.0001516,2]
[403962534,1769695838128,-514.28,0.0001516,2]
[403962536,1769695838137,-514.28,0.0001516,2]
[403962538,1769695838147,-169.71523397,0.0001516,2]
[403962540,1769695838156,-500.0,0.0001516,2]
[403962542,1769695838165,-500.0,0.0001516,2]
[403962544,1769695838174,-500.0,0.0001516,2]
[403962546,1769695838183,-500.0,0.0001516,2]
[403962548,1769695838192,-500.0,0.0001516,2]
[403962550,1769695838202,-151.0,0.00015161,2]
[403962552,1769695838212,-151.0,0.00015161,2]
[403962554,1769695838222,-1184.46,0.00015185,2]
[403962555,1769695838231,-1184.46,0.00015233,2]
[403962558,1769695838240,-1184.46,0.00015281,2]
[403962560,1769695838249,-33527.97640031,0.00015288,2]
[403962562,1769695838259,-21624.22483593,0.00015288,2]
[403962564,1769695838268,-1184.46,0.00015329,2]
[403962566,1769695838278,-1184.46,0.00015377,2]
[403962568,1769695838287,-1184.46,0.00015425,2]
[403962570,1769695838296,-1184.46,0.00015472,2]
[403962572,1769695838306,-151.0,0.00015498,2]
[403962573,1769695838316,-1184.46,0.0001552,2]
[403962574,1769695838326,-151.0,0.00015529,2]
[403962575,1769695838335,-151.0,0.00015529,2]
[403962576,1769695838344,-151.0,0.00015533,2]
[403962577,1769695838353,-151.0,0.00015533,2]
[403962578,1769695838362,-151.0,0.00015536,2]
[403962579,1769695838372,-151.0,0.00015536,2]
[403962580,1769695838381,-151.0,0.00015539,2]
[403962581,1769695838391,-151.0,0.00015539,2]
[403962582,1769695838400,-3564.03788855,0.00015549,2]
[403962583,1769695838409,-1184.46,0.00015568,2]
[403962584,1769695838419,-1245.4688414,0.00015576,2]
[403962585,1769695838429,-33527.97640031,0.00015614,2]
[403962586,1769695838438,-21624.22483593,0.00015614,2]
[403962587,1769695838447,-1184.46,0.00015616,2]
[403962588,1769695838457,-158.5,0.00015626,2]
[403962589,1769695838467,-250.0,0.00015658,2]
[403962590,1769695838476,-600.0,0.00015658,2]
[403962591,1769695838486,-195.0,0.00015658,2]
[403962592,1769695838495,-300.0,0.00015658,2]
[403962593,1769695838504,-966.96931024,0.00015658,2]
[403962594,1769695838513,-500.0,0.00015658,2]
[403962595,1769695838522,-193.0,0.00015658,2]
[403962596,1769695838532,-250.0,0.00015658,2]
[403962597,1769695838542,-150.0,0.00015661,2]
[403962598,1769695838552,-150.0,0.00015661,2]
[403962599,1769695838561,-1184.46,0.00015664,2]
[403962600,1769695838571,-1184.46,0.00015712,2]
[403962601,1769695838580,-1184.46,0.0001576,2]
[403962602,1769695838589,-1184.46,0.00015808,2]
[403962603,1769695838599,-514.28,0.00015847,2]
[403962604,1769695838608,-1184.46,0.00015856,2]
[403962605,1769695838618,-1184.46,0.00015904,2]
[403962606,1769695838627,-1000.0,0.00015918,2]
[403962607,1769695838637,-33527.97640031,0.00015941,2]
[403962608,1769695838646,-21624.22483593,0.00015941,2]
[403962609,1769695838655,-33270.6958,0.00015949,2]
[403962610,1769695838665,-1000.0,0.00015949,2]
[403962611,1769695838675,-150.0,0.00015949,2]
[403962612,1769695838685,-1184.46,0.00015952,2]
[403962613,1769695838694,-500.0,0.00015973,2]
[403962614,1769695838703,-500.0,0.00015973,2]
[403962615,1769695838712,-500.0,0.00015973,2]
[403962616,1769695838721,-500.0,0.00015973,2]
[403962617,1769695838731,-500.0,0.00015973,2]
[403962618,1769695838741,-504.68661395,0.00015973,2]
[403962619,1769695838750,-500.0,0.00015973,2]
[403962620,1769695838760,-500.0,0.00015973,2]
[403962621,1769695838768,-500.0,0.00015973,2]
[403962622,1769695838778,-156.35277516,0.00015973,2]
[403962623,1769695838788,-500.0,0.00015973,2]
[403962624,1769695838797,-500.0,0.00015973,2]
[403962625,1769695838807,-500.0,0.00015973,2]
[403962626,1769695838816,-500.0,0.00015973,2]
[403962627,1769695838825,-500.0,0.00015973,2]
[403962628,1769695838835,-500.0,0.00015973,2]
[403962629,1769695838845,-500.0,0.00015973,2]
[403962630,1769695838855,-490.14600045,0.00015973,2]
[403962631,1769695838864,-500.0,0.00015973,2]
[403962632,1769695838874,-500.0,0.00015973,2]
[403962633,1769695838883,-500.0,0.00015973,2]
[403962634,1769695838893,-500.0,0.00015973,2]
[403962635,1769695838903,-500.0,0.00015973,2]
[403962636,1769695838912,-1454.34,0.00015973,2]
[403962637,1769695838922,-2500.0,0.00015976,2]
[403962638,1769695838931,-370.73177233,0.00015976,2]
[403962639,1769695838941,-193.62028716,0.00015976,2]
[403962640,1769695838951,-291.41973168,0.00015976,2]
[403962641,1769695838962,-195.0,0.00015976,2]
[403962642,1769695838974,-5000.0,0.00015976,2]
[403962643,1769695838983,-2219.796418,0.00016,3]
[403962644,1769695838993,-300.0,0.00016006,2]
[403962645,1769695839002,-420.0,0.00016006,2]
[403962646,1769695839012,-1245.4688414,0.00016041,2]
[403962647,1769695839021,-500.0,0.00016048,2]
[403962648,1769695839031,-500.0,0.00016048,2]
[403962649,1769695839040,-500.0,0.00016048,2]
[403962650,1769695839050,-500.0,0.00016048,2]
[403962651,1769695839059,-500.0,0.00016048,2]
[403962652,1769695839069,-500.0,0.00016048,2]
[403962653,1769695839079,-500.0,0.00016048,2]
[403962654,1769695839088,-500.0,0.00016048,2]
[403962655,1769695839098,-500.0,0.00016048,2]
[403962656,1769695839107,-500.0,0.00016048,2]
[403962657,1769695839116,-500.0,0.00016048,2]
[403962658,1769695839125,-500.0,0.00016048,2]
[403962659,1769695839134,-500.0,0.00016048,2]
[403962660,1769695839144,-500.0,0.00016048,2]
[403962661,1769695839153,-500.0,0.00016048,2]
[403962662,1769695839162,-500.0,0.00016048,2]
[403962663,1769695839171,-500.0,0.00016048,2]
[403962664,1769695839180,-500.0,0.00016048,2]
[403962665,1769695839189,-500.0,0.00016048,2]
[403962666,1769695839198,-500.0,0.00016048,2]
[403962667,1769695839207,-600.43584466,0.00016048,2]
[403962668,1769695839216,-500.0,0.00016048,2]
[403962669,1769695839226,-500.0,0.00016048,2]
[403962670,1769695839235,-500.0,0.00016048,2]
[403962671,1769695839244,-500.0,0.00016048,2]
[403962672,1769695839253,-500.0,0.00016048,2]
[403962673,1769695839262,-500.0,0.00016048,2]
[403962674,1769695839271,-500.0,0.00016048,2]
[403962675,1769695839281,-500.0,0.00016048,2]
[403962676,1769695839290,-500.0,0.00016048,2]
[403962677,1769695839299,-500.0,0.00016048,2]
[403962678,1769695839308,-500.0,0.00016048,2]
[403962679,1769695839317,-500.0,0.00016048,2]
[403962680,1769695839327,-500.0,0.00016048,2]
[403962681,1769695839336,-500.0,0.00016048,2]
[403962682,1769695839345,-500.0,0.00016048,2]
[403962683,1769695839354,-500.0,0.00016049,2]
[403962684,1769695839363,-194.72,0.0001608,2]
[403962685,1769695839372,-255.0,0.00016082,2]
[403962686,1769695839382,-9999.99,0.00016116,2]
[403962687,1769695839391,-3564.03788855,0.00016137,2]
[403962688,1769695839400,-1454.34,0.00016247,2]
[403962689,1769695839410,-33527.97640031,0.00016267,2]
[403962690,1769695839419,-21624.22483593,0.00016267,2]
[403962691,1769695839428,-1852.42,0.00016295,2]
[403962692,1769695839437,-500.0,0.000164,2]
[403962693,1769695839446,-150.17343473,0.000164,2]
[403962694,1769695839455,-250.0,0.000164,2]
[403962695,1769695839465,-1680.0,0.00016401,2]
[403962696,1769695839474,-500.0,0.00016411,2]
[403962697,1769695839483,-150.0,0.00016411,2]
[403962698,1769695839493,-202.26609982,0.00016431,2]
[403962699,1769695839502,-514.28,0.00016437,2]
[403962700,1769695839511,-2267.19371394,0.00016438,2]
[403962701,1769695839520,-2267.19371394,0.00016438,2]
[403962702,1769695839530,-2267.19371394,0.00016438,2]
[403962703,1769695839539,-2267.19371394,0.00016438,2]
[403962704,1769695839548,-2267.19371394,0.00016438,2]
[403962705,1769695839557,-2267.19371394,0.00016438,2]
[403962707,1769695839665,-2267.19371394,0.00016438,2]
[403962708,1769695839675,-2267.19371394,0.00016438,2]
[403962709,1769695839684,-2267.19371394,0.00016438,2]
[403962711,1769695839693,-2267.19371394,0.00016438,2]
[403962712,1769695839702,-2267.19371394,0.00016438,2]
[403962713,1769695839711,-2267.19371394,0.00016438,2]
[403962714,1769695839720,-2267.19371394,0.00016438,2]
[403962715,1769695839729,-2267.19371394,0.00016438,2]
[403962716,1769695839738,-2267.19371394,0.00016438,2]
[403962717,1769695839747,-2267.19371394,0.00016438,2]
[403962718,1769695839757,-2267.19371394,0.00016438,2]
[403962719,1769695839766,-2267.19371394,0.00016438,2]
[403962720,1769695839774,-2267.19371394,0.00016438,2]
[403962721,1769695839783,-2267.19371394,0.00016438,2]
[403962722,1769695839792,-2267.19371394,0.00016438,2]
[403962723,1769695839801,-2267.19371394,0.00016438,2]
[403962724,1769695839810,-2267.19371394,0.00016438,2]
[403962725,1769695839818,-2267.19371394,0.00016438,2]
[403962726,1769695839827,-2267.19371394,0.00016438,2]
[403962727,1769695839836,-2267.19371394,0.00016438,2]
[403962728,1769695839845,-2267.19371394,0.00016438,2]
[403962729,1769695839854,-2267.19371394,0.00016438,2]
[403962730,1769695839863,-2267.19371394,0.00016438,2]
[403962731,1769695839873,-2267.19371394,0.00016438,2]
[403962732,1769695839882,-2267.19371394,0.00016438,2]
[403962733,1769695839891,-2267.19371394,0.00016438,2]
[403962734,1769695839901,-2267.19371394,0.00016438,2]
[403962735,1769695839911,-2267.19371394,0.00016438,2]
[403962736,1769695839921,-2267.19371394,0.00016438,2]
[403962737,1769695839931,-2267.19371394,0.00016438,2]
[403962738,1769695839939,-2267.19371394,0.00016438,2]
[403962739,1769695839950,-2267.19371394,0.00016438,2]
[403962740,1769695839959,-2267.19371394,0.00016438,2]
[403962741,1769695839972,-2267.19371394,0.00016438,2]
[403962742,1769695839982,-2267.19371394,0.00016438,2]
[403962743,1769695839991,-2267.19371394,0.00016438,2]
[403962744,1769695840001,-2267.19371394,0.00016438,2]
[403962745,1769695840011,-2267.19371394,0.00016438,2]
[403962746,1769695840021,-2267.19371394,0.00016438,2]
[403962747,1769695840031,-2267.19371394,0.00016438,2]
[403962748,1769695840043,-2267.19371394,0.00016438,2]
[403962749,1769695840053,-2267.19371394,0.00016438,2]
[403962750,1769695840062,-2267.19371394,0.00016438,2]
[403962751,1769695840072,-2267.19371394,0.00016438,2]
[403962752,1769695840081,-2267.19371394,0.00016438,2]
[403962753,1769695840090,-2267.19371394,0.00016438,2]
[403962754,1769695840099,-2267.19371394,0.00016438,2]
[403962755,1769695840108,-2267.19371394,0.00016438,2]
[403962756,1769695840117,-2267.19371394,0.00016438,2]
[403962757,1769695840126,-2267.19371394,0.00016438,2]
[403962758,1769695840135,-2267.19371394,0.00016438,2]
[403962759,1769695840146,-2267.19371394,0.00016438,2]
[403962760,1769695840156,-2267.19371394,0.00016438,2]
[403962761,1769695840166,-2267.19371394,0.00016438,2]
[403962762,1769695840176,-2267.19371394,0.00016438,2]
[403962763,1769695840187,-2267.19371394,0.00016438,2]
[403962764,1769695840196,-2267.19371394,0.00016438,2]
[403962765,1769695840206,-2862.10957889,0.00016438,2]
[403962766,1769695840216,-2862.10957889,0.00016438,2]
[403962767,1769695840226,-2862.10957889,0.00016438,2]
[403962768,1769695840237,-2862.10957889,0.00016438,2]
[403962769,1769695840246,-2862.10957889,0.00016438,2]
[403962770,1769695840255,-2862.10957889,0.00016438,2]
[403962771,1769695840264,-800.0,0.00016438,2]
[403962772,1769695840273,-500.0,0.00016466,2]
[403962773,1769695840284,-1245.4688414,0.00016506,2]
[403962774,1769695840293,-1000.0,0.00016515,2]
[403962775,1769695840302,-500.37082769,0.00016521,2]
[403962776,1769695840311,-506.79391477,0.00016521,2]
[403962777,1769695840320,-500.0,0.00016521,2]
[403962778,1769695840329,-500.0,0.00016521,2]
[403962779,1769695840338,-1000.0,0.00016521,2]
[403962780,1769695840347,-500.0,0.00016521,2]
[403962781,1769695840357,-501.77083236,0.00016521,2]
[403962782,1769695840367,-500.0,0.00016521,2]
[403962783,1769695840376,-1000.0,0.00016521,2]
[403962784,1769695840385,-500.0,0.00016521,2]
[403962785,1769695840394,-500.0,0.00016521,2]
[403962786,1769695840403,-500.0,0.00016521,2]
[403962787,1769695840412,-1000.0,0.00016521,2]
[403962788,1769695840421,-1012.0030697,0.00016521,2]
[403962789,1769695840430,-350.06999106,0.00016521,2]
[403962790,1769695840439,-500.0,0.00016521,2]
[403962791,1769695840448,-1454.34,0.00016521,2]
[403962792,1769695840458,-500.0,0.00016575,2]
[403962793,1769695840467,-33527.97640031,0.00016594,2]
[403962794,1769695840478,-21624.22483593,0.00016594,2]
[403962795,1769695840487,-500.0,0.00016599,2]
[403962796,1769695840496,-500.0,0.0001663,2]
[403962797,1769695840507,-11307.39711122,0.00016683,2]
[403962798,1769695840515,-500.0,0.00016685,2]
[403962799,1769695840524,-275.92,0.000167,2]
[403962800,1769695840534,-165.55,0.00016712,2]
[403962801,1769695840543,-3564.03788855,0.00016724,2]
[403962802,1769695840554,-460.01543511,0.0001674,2]
[403962803,1769695840563,-500.0,0.0001676,2]
[403962804,1769695840572,-1454.34,0.00016795,2]
[403962805,1769695840581,-2622.89680152,0.00016837,2]
[403962806,1769695840591,-6921.86615749,0.00016837,2]
[403962807,1769695840599,-33527.97640031,0.0001692,2]
[403962808,1769695840609,-21624.22483593,0.0001692,2]
[403962809,1769695840619,-500.0,0.00016947,2]
[403962810,1769695840628,-1245.4688414,0.0001697,2]
[403962811,1769695840637,-704.0,0.00016983,2]
[403962812,1769695840648,-10000.0,0.00016999,2]
[403962813,1769695840657,-250.0,0.00017,2]
[403962814,1769695840666,-1454.34,0.00017068,2]
[403962815,1769695840675,-1500.0,0.00017068,2]
[403962816,1769695840684,-502.95752889,0.00017068,2]
[403962817,1769695840693,-1500.0,0.00017068,2]
[403962818,1769695840703,-250.0,0.00017095,2]
[403962819,1769695840712,-514.28,0.00017098,2]
[403962820,1769695840721,-166.66,0.00017099,2]
[403962821,1769695840730,-578.20924308,0.00017099,2]
[403962822,1769695840739,-1000.0,0.00017099,2]
[403962823,1769695840748,-250.0,0.00017099,2]
[403962824,1769695840757,-1000.0,0.00017099,2]
[403962825,1769695840766,-250.0,0.00017099,2]
[403962826,1769695840775,-500.0,0.00017099,2]
[403962827,1769695840783,-1000.0,0.00017099,2]
[403962828,1769695840793,-250.0,0.00017099,2]
[403962829,1769695840802,-500.0,0.00017099,2]
[403962830,1769695840812,-1000.0,0.00017099,2]
[403962831,1769695840822,-250.0,0.00017099,2]
[403962832,1769695840831,-500.0,0.00017099,2]
[403962833,1769695840841,-500.0,0.00017099,2]
[403962834,1769695840851,-1000.0,0.00017099,2]
[403962835,1769695840861,-250.0,0.00017099,2]
[403962836,1769695840870,-500.0,0.00017099,2]
[403962837,1769695840879,-1000.0,0.00017099,2]
[403962838,1769695840888,-500.0,0.00017099,2]
[403962839,1769695840897,-250.0,0.00017099,2]
[403962840,1769695840906,-500.0,0.00017099,2]
[403962841,1769695840916,-500.0,0.00017099,2]
[403962842,1769695840925,-500.0,0.00017099,2]
[403962843,1769695840934,-1000.0,0.00017099,2]
[403962844,1769695840944,-250.0,0.00017099,2]
[403962845,1769695840954,-250.0,0.00017099,2]
[403962847,1769695840965,-500.0,0.00017099,2]
[403962848,1769695840975,-500.0,0.00017099,2]
[403962849,1769695840984,-1000.0,0.00017099,2]
[403962850,1769695840994,-250.0,0.00017099,2]
[403962851,1769695841003,-500.0,0.00017099,2]
[403962852,1769695841013,-250.0,0.00017099,2]
[403962853,1769695841022,-500.0,0.00017099,2]
[403962854,1769695841031,-500.0,0.00017099,2]
[403962855,1769695841042,-1000.0,0.00017099,2]
[403962856,1769695841050,-250.0,0.00017099,2]
[403962857,1769695841061,-500.0,0.00017099,2]
[403962858,1769695841071,-250.0,0.00017099,2]
[403962859,1769695841080,-500.0,0.00017099,2]
[403962860,1769695841089,-500.0,0.00017099,2]
[403962861,1769695841098,-500.0,0.00017099,2]
[403962862,1769695841108,-250.0,0.00017099,2]
[403962863,1769695841117,-1000.0,0.00017099,2]
[403962864,1769695841126,-250.0,0.00017099,2]
[403962865,1769695841135,-500.0,0.00017099,2]
[403962866,1769695841144,-500.0,0.00017099,2]
[403962867,1769695841153,-500.0,0.00017099,2]
[403962868,1769695841163,-1000.0,0.00017099,2]
[403962869,1769695841172,-250.0,0.00017099,2]
[403962870,1769695841181,-250.0,0.00017099,2]
[403962871,1769695841190,-500.0,0.00017099,2]
[403962872,1769695841199,-500.0,0.00017099,2]
[403962873,1769695841208,-250.0,0.00017099,2]
[403962874,1769695841218,-500.0,0.00017099,2]
[403962875,1769695841228,-500.0,0.00017099,2]
[403962876,1769695841237,-500.0,0.00017099,2]
[403962878,1769695841246,-500.0,0.00017099,2]
[403962879,1769695841256,-250.0,0.00017099,2]
[403962880,1769695841265,-500.0,0.00017099,2]
[403962881,1769695841275,-202.66289745,0.00017099,2]
[403962882,1769695841285,-250.0,0.00017099,2]
[403962883,1769695841295,-500.0,0.00017099,2]
[403962884,1769695841306,-250.0,0.00017099,2]
[403962885,1769695841315,-500.0,0.00017099,2]
[403962886,1769695841326,-250.0,0.00017099,2]
[403962887,1769695841336,-500.0,0.00017099,2]
[403962888,1769695841345,-250.0,0.00017099,2]
[403962889,1769695841354,-174.61919141,0.00017099,2]
[403962890,1769695841363,-721.12765535,0.00017099,2]
[403962891,1769695841372,-209.40437684,0.00017099,2]
[403962892,1769695841383,-500.0,0.00017099,2]
[403962893,1769695841392,-500.0,0.00017099,2]
[403962894,1769695841402,-500.0,0.00017099,2]
[403962895,1769695841411,-500.0,0.00017099,2]
[403962896,1769695841420,-500.0,0.00017099,2]
[403962897,1769695841430,-250.0,0.00017099,2]
[403962898,1769695841438,-500.0,0.00017099,2]
[403962899,1769695841448,-250.0,0.00017099,2]
[403962900,1769695841457,-500.0,0.00017099,2]
[403962901,1769695841467,-250.0,0.00017099,2]
[403962902,1769695841476,-500.0,0.00017099,2]
[403962903,1769695841485,-250.0,0.00017099,2]
[403962904,1769695841495,-250.0,0.00017099,2]
[403962905,1769695841505,-250.0,0.00017099,2]
[403962906,1769695841514,-250.0,0.00017099,2]
[403962907,1769695841524,-250.0,0.00017099,2]
[403962908,1769695841533,-250.0,0.00017099,2]
[403962909,1769695841543,-250.0,0.00017099,2]
[403962910,1769695841553,-250.0,0.00017099,2]
[403962911,1769695841563,-322.6107,0.00017099,2]
[403962912,1769695841572,-250.0,0.00017099,2]
[403962913,1769695841582,-500.0,0.00017099,2]
[403962914,1769695841591,-250.0,0.00017099,2]
[403962915,1769695841600,-500.0,0.00017099,2]
[403962916,1769695841609,-250.0,0.00017099,2]
[403962917,1769695841618,-500.0,0.00017099,2]
[403962918,1769695841627,-250.0,0.00017099,2]
[403962919,1769695841636,-250.0,0.00017099,2]
[403962920,1769695841646,-250.0,0.00017099,2]
[403962921,1769695841656,-250.0,0.00017099,2]
[403962922,1769695841665,-180.85722533,0.00017099,2]
[403962923,1769695841674,-250.0,0.00017099,2]
[403962924,1769695841683,-250.0,0.00017099,2]
[403962925,1769695841692,-854.2589148,0.00017099,2]
[403962926,1769695841701,-250.0,0.00017099,2]
[403962927,1769695841711,-250.0,0.00017099,2]
[403962928,1769695841720,-151.0,0.00017099,2]
[403962929,1769695841729,-209.40437684,0.00017099,2]
[403962930,1769695841738,-359.91781005,0.00017099,2]
[403962931,1769695841747,-1000.0,0.00017112,2]
[403962932,1769695841757,-158.5,0.00017134,2]
[403962933,1769695841766,-217.15233878,0.00017154,2]
[403962934,1769695841776,-225.18697532,0.00017209,2]
[403962935,1769695841785,-33527.97640031,0.00017247,2]
[403962936,1769695841795,-21624.22483593,0.00017247,2]
[403962937,1769695841806,-500.0,0.00017249,2]
[403962938,1769695841815,-233.51889341,0.00017264,2]
[403962939,1769695841825,-433.0,0.00017294,2]
[403962940,1769695841834,-3564.03788855,0.00017312,2]
[403962941,1769695841844,-5681.0,0.00017312,2]
[403962942,1769695841853,-242.15909246,0.00017319,2]
[403962943,1769695841862,-165.61,0.00017339,2]
[403962944,1769695841871,-1454.34,0.00017342,2]
[403962945,1769695841880,-251.11897888,0.00017374,2]
[403962946,1769695841889,-194.72,0.00017398,2]
[403962947,1769695841899,-152.3,0.000174,2]
[403962948,1769695841908,-152.3,0.000174,2]
[403962949,1769695841918,-152.3,0.000174,2]
[403962950,1769695841927,-152.3,0.000174,2]
[403962951,1769695841936,-152.3,0.000174,2]
[403962952,1769695841945,-152.3,0.000174,2]
[403962953,1769695841954,-152.3,0.000174,2]
[403962954,1769695841966,-152.3,0.000174,2]
[403962955,1769695841975,-152.3,0.000174,2]
[403962956,1769695841984,-152.3,0.000174,2]
[403962957,1769695841994,-152.3,0.000174,2]
[403962958,1769695842004,-152.3,0.000174,2]
[403962959,1769695842014,-152.3,0.000174,2]
[403962960,1769695842023,-3600.0,0.000174,6]
[403962961,1769695842032,-5681.0,0.00017404,2]
[403962962,1769695842043,-260.4103811,0.00017429,2]
[403962963,1769695842053,-1245.4688414,0.00017435,2]
[403962964,1769695842062,-270.0455652,0.00017484,2]
[403962965,1769695842071,-700.0,0.000175,6]
[403962966,1769695842081,-267.0,0.00017525,2]
[403962967,1769695842090,-718.43917855,0.00017534,2]
[403962968,1769695842100,-280.03725112,0.00017539,2]
[403962969,1769695842109,-158.5,0.0001754,2]
[403962970,1769695842118,-9890.97262948,0.00017543,2]
[403962971,1769695842127,-1660.17763539,0.00017559,2]
[403962972,1769695842136,-33527.97640031,0.00017573,2]
[403962973,1769695842145,-21624.22483593,0.00017573,2]
[403962974,1769695842155,-152.3,0.00017579,2]
[403962975,1769695842165,-150.0,0.00017589,2]
[403962976,1769695842174,-150.0,0.00017589,2]
[403962977,1769695842183,-150.0,0.00017589,2]
[403962978,1769695842192,-500.0,0.00017589,2]
[403962979,1769695842202,-153.23607155,0.00017589,2]
[403962980,1769695842211,-150.0,0.00017589,2]
[403962981,1769695842220,-150.0,0.00017589,2]
[403962982,1769695842228,-150.89317247,0.00017589,2]
[403962983,1769695842238,-150.0,0.00017589,2]
[403962984,1769695842247,-151.38299639,0.00017589,2]
[403962985,1769695842256,-150.0,0.00017589,2]
[403962986,1769695842265,-500.0,0.00017589,2]
[403962987,1769695842274,-150.0,0.00017589,2]
[403962988,1769695842283,-150.94007099,0.00017589,2]
[403962989,1769695842292,-150.0,0.00017589,2]
[403962990,1769695842301,-150.0,0.00017589,2]
[403962991,1769695842310,-547.0,0.00017589,2]
[403962992,1769695842319,-500.0,0.00017589,2]
[403962993,1769695842328,-150.0,0.00017589,2]
[403962994,1769695842338,-150.0,0.00017589,2]
[403962995,1769695842347,-150.0,0.00017589,2]
[403962996,1769695842356,-150.0,0.00017589,2]
[403962997,1769695842365,-150.0,0.00017589,2]
[403962998,1769695842374,-500.0,0.00017589,2]
[403962999,1769695842383,-165.72537453,0.00017589,2]
[403963000,1769695842393,-150.0,0.00017589,2]
[403963001,1769695842403,-150.0,0.00017589,2]
[403963002,1769695842412,-150.0,0.00017589,2]
[403963003,1769695842422,-500.0,0.00017589,2]
[403963004,1769695842431,-500.0,0.00017589,2]
[403963005,1769695842440,-150.0,0.00017589,2]
[403963006,1769695842449,-150.0,0.00017589,2]
[403963007,1769695842458,-150.0,0.00017589,2]
[403963008,1769695842468,-290.39862941,0.00017594,2]
[403963009,1769695842478,-700.0,0.000176,6]
[403963010,1769695842487,-1454.34,0.00017616,2]
[403963011,1769695842497,-2000.0,0.00017616,2]
[403963012,1769695842506,-796.55427389,0.00017616,2]
[403963013,1769695842515,-3424.25916526,0.00017625,2]
[403963014,1769695842524,-5681.0,0.0001763,2]
[403963015,1769695842533,-2986.73035102,0.0001764,2]
[403963016,1769695842542,-521.41084093,0.00017641,3]
[403963017,1769695842551,-150.0,0.00017644,2]
[403963018,1769695842561,-150.0,0.00017644,2]
[403963019,1769695842570,-500.0,0.00017644,2]
[403963020,1769695842579,-150.0,0.00017644,2]
[403963021,1769695842588,-153.98209537,0.00017644,2]
[403963022,1769695842597,-153.57030056,0.00017644,2]
[403963023,1769695842606,-500.0,0.00017644,2]
[403963024,1769695842615,-204.59716346,0.00017644,2]
[403963025,1769695842624,-150.0,0.00017644,2]
[403963026,1769695842634,-176.88485057,0.00017644,2]
[403963027,1769695842643,-547.0,0.00017644,2]
[403963028,1769695842652,-500.0,0.00017644,2]
[403963029,1769695842661,-150.0,0.00017644,2]
[403963030,1769695842670,-150.0,0.00017644,2]
[403963031,1769695842680,-150.0,0.00017644,2]
[403963032,1769695842689,-500.0,0.00017644,2]
[403963033,1769695842698,-150.0,0.00017644,2]
[403963034,1769695842707,-150.0,0.00017644,2]
[403963035,1769695842716,-500.0,0.00017644,2]
[403963036,1769695842726,-500.0,0.00017644,2]
[403963037,1769695842735,-281.0,0.00017644,2]
[403963038,1769695842744,-181.08010149,0.00017647,2]
[403963039,1769695842753,-885.86649465,0.00017647,2]
[403963040,1769695842762,-151.0,0.00017647,2]
[403963041,1769695842771,-217.15233878,0.00017647,2]
[403963042,1769695842780,-301.1433787,0.00017649,2]
[403963043,1769695842789,-166.66,0.00017663,2]